fUSD/lending_fUSD_20260107
["ID","MTS","AMOUNT","RATE_DAILY","PERIOD"]
[400697728,1767782101291,271.7085003,0.0001545,2]
[400697729,1767782101341,300.0,0.00015604,2]
[400697730,1767782101384,1200.0,0.00015604,2]
[400697735,1767782132857,1321.76307314,0.00015505,2]
[400697736,1767782159496,1090.19228969,0.00015505,2]
[400697737,1767782161178,300.0,0.00015604,2]
[400697738,1767782196498,2685.29990245,0.00015505,2]
[400697739,1767782196522,9872.31219755,0.00015505,2]
[400697740,1767782221229,127.69780245,0.00015604,2]
[400697741,1767782221253,172.30219755,0.00015604,2]
[400697742,1767782227152,1000.0,0.00015505,2]
[400697743,1767782233480,4108.7785,0.00015505,2]
[400697744,1767782248374,766.11,0.00015196,2]
[400697745,1767782341231,300.0,0.00015604,2]
[400697746,1767782341758,300.0,0.00015604,2]
[400697747,1767782351681,1115.94903288,0.00015604,5]
[400697749,1767782372857,2236.87026957,0.00015505,2]
[400697750,1767782372882,8471.4187993,0.00015505,2]
[400697751,1767782377332,1000.0,0.00015505,2]
[400697752,1767782389019,528.5912007,0.00015505,2]
[400697753,1767782389045,3398.8557993,0.00015505,2]
[400697754,1767782401043,6601.1542007,0.00015505,2]
[400697755,1767782401066,10000.01,0.00015505,2]
[400697756,1767782401090,693.68231188,0.00015505,2]
[400697757,1767782401257,300.0,0.00015604,2]
[400697758,1767782401345,1200.0,0.00015604,2]
[400697761,1767782413277,7806.32768812,0.00015595,2]
[400697762,1767782413301,2058.50231188,0.00015595,2]
[400697764,1767782413496,7941.50768812,0.00015595,2]
[400697765,1767782413518,1923.32231188,0.00015595,2]
[400697768,1767782417082,323.63,0.00015074,2]
[400697769,1767782439749,1181.97712175,0.00015505,2]
[400697770,1767782479698,1000.0,0.00015604,2]
[400697771,1767782490074,234.22420722,0.00015482,2]
[400697772,1767782491313,500.0,0.00015604,2]
[400697773,1767782491486,524.2180077,0.00015604,2]
[400697774,1767782491907,4312.63835145,0.00015037,2]
[400697775,1767782491930,9861.62164855,0.00015037,2]
[400697776,1767782493351,138.38835145,0.00015293,2]
[400697777,1767782493375,26.94764855,0.00015293,2]
[400697778,1767782493460,1661.588,0.00015293,2]
[400697779,1767782496050,2093.35,0.00015006,2]
[400697780,1767782504793,500.0,0.00015604,2]
[400697781,1767782505023,500.0,0.00015604,2]
[400697782,1767782511674,1000.0,0.00015505,2]
[400697783,1767782521282,300.0,0.00015604,2]
[400697784,1767782522126,300.0,0.00015604,2]
[400697785,1767782523812,7400.01,0.00015505,2]
[400697786,1767782523835,10000.01,0.00015505,2]
[400697787,1767782524191,10000.01,0.00015505,2]
[400697788,1767782524214,10000.01,0.00015505,2]
[400697789,1767782524236,10000.01,0.00015505,2]
[400697790,1767782524258,1777.8833,0.00015505,2]
[400697791,1767782524990,200.0,0.00015605,2]
[400697792,1767782529381,200.0,0.00015605,2]
[400697793,1767782530665,151.0,0.00015605,2]
[400697794,1767782531294,151.0,0.00015605,2]
[400697795,1767782532222,151.0,0.00015605,2]
[400697796,1767782533134,500.0,0.00015604,2]
[400697797,1767782533212,500.0,0.00015604,2]
[400697798,1767782533294,151.0,0.00015605,2]
[400697799,1767782533493,151.0,0.00015605,2]
[400697800,1767782533763,151.0,0.00015605,2]
[400697801,1767782534409,151.0,0.00015605,2]
[400697802,1767782535004,151.0,0.00015605,2]
[400697803,1767782535625,151.0,0.00015605,2]
[400697804,1767782536325,151.0,0.00015605,2]
[400697805,1767782536862,151.0,0.00015605,2]
[400697806,1767782544133,500.0,0.00015605,2]
[400697807,1767782549463,4661.1267,0.00015016,2]
[400697808,1767782549492,869.0433,0.00015016,2]
[400697809,1767782576036,228.14,0.00015025,2]
[400697810,1767782593415,776.6986,0.00015505,2]
[400697811,1767782619178,500.0,0.00015505,2]
[400697812,1767782622437,7626.1281,0.00015595,2]
[400697813,1767782622460,10000.01,0.00015595,2]
[400697814,1767782622482,2339.70265482,0.00015595,2]
[400697815,1767782641204,300.0,0.00015604,2]
[400697816,1767782662710,1000.0,0.00015505,2]
[400697817,1767782701189,300.0,0.00015604,2]
[400697818,1767782701220,300.0,0.00015604,2]
[400697819,1767782701504,1200.0,0.00015604,2]
[400697820,1767782702271,210.0,0.00015604,2]
[400697824,1767782720115,1034.22998154,0.00015505,2]
[400697825,1767782720531,537.05653843,0.00015604,2]
[400697826,1767782724662,500.0,0.00015604,2]
[400697827,1767782724887,500.0,0.00015604,2]
[400697828,1767782754171,500.0,0.00014989,2]
[400697829,1767782755035,500.0,0.00015604,2]
[400697830,1767782755313,513.27916728,0.00015604,2]
[400697831,1767782761390,300.0,0.00015604,2]
[400697832,1767782787188,2305.44431275,0.00015505,2]
[400697833,1767782787214,10000.01,0.00015505,2]
[400697834,1767782787241,4095.79989203,0.00015505,2]
[400697835,1767782796050,5904.21010797,0.00015505,2]
[400697836,1767782796079,10000.01,0.00015505,2]
[400697837,1767782796106,10000.01,0.00015505,2]
[400697838,1767782796134,10000.01,0.00015505,2]
[400697839,1767782796160,10000.01,0.00015505,2]
[400697840,1767782796187,10000.01,0.00015505,2]
[400697841,1767782796212,10000.01,0.00015505,2]
[400697842,1767782796237,10000.01,0.00015505,2]
[400697844,1767782827412,-300.0,0.00015504,2]
[400697845,1767782840378,-151.0,0.00015502,2]
[400697846,1767782846415,1569.0002652,0.00014887,2]
[400697847,1767782846437,652.0997348,0.00014887,2]
[400697848,1767782848909,-200.00962195,0.00015405,2]
[400697849,1767782862814,2559.02266524,0.00014887,2]
[400697850,1767782862837,3211.12240004,0.00014887,2]
[400697851,1767782862860,3211.12240004,0.00014887,2]
[400697852,1767782862882,3211.12240004,0.00014887,2]
[400697853,1767782862904,3010.92013464,0.00014887,2]
[400697854,1767782869688,-4137.842368,0.00015427,2]
[400697855,1767782869738,-1724.325264,0.00015427,2]
[400697856,1767782869748,-3095.27268706,0.00015505,2]
[400697857,1767782869870,-10000.01,0.00015505,2]
[400697858,1767782870075,-10000.01,0.00015505,2]
[400697859,1767782881402,-10000.01,0.00015505,2]
[400697860,1767782881773,-10000.01,0.00015505,2]
[400697861,1767782881900,-10000.01,0.00015505,2]
[400697862,1767782882379,-300.0,0.00015504,2]
[400697863,1767782882428,-9700.01,0.00015505,2]
[400697864,1767782882456,-300.0,0.00015505,2]
[400697865,1767782882470,-9400.01,0.00015505,2]
[400697866,1767782882492,-10000.01,0.00015505,2]
[400697867,1767782891502,200.0,0.00032876,120]
[400697868,1767782892461,200.2022654,0.00014843,2]
[400697869,1767782892487,2600.7577346,0.00014843,2]
[400697870,1767782896090,-300.0,0.00015404,2]
[400697871,1767782896144,-9400.01,0.00015405,2]
[400697872,1767782900345,200.0,0.00032876,120]
[400697873,1767782908449,210.0,0.00032876,120]
[400697874,1767782923982,12181.61,0.00014917,2]
[400697875,1767782925033,-1074.33492002,0.00015405,2]
[400697876,1767782925064,-420.13681632,0.00015405,2]
[400697877,1767782925099,-507.2536814,0.00015504,2]
[400697878,1767782925131,-500.0,0.00015504,2]
[400697879,1767782925164,-423.10041914,0.00015504,2]
[400697880,1767782925197,-500.0,0.00015504,2]
[400697881,1767782925227,-500.0,0.00015504,2]
[400697882,1767782925258,-446.38807719,0.00015504,2]
[400697883,1767782925288,-500.0,0.00015504,2]
[400697884,1767782925492,-257.58217186,0.00015504,2]
[400697885,1767782925556,-242.41782814,0.00015504,2]
[400697886,1767782925587,-500.0,0.00015504,2]
[400697887,1767782925617,-500.0,0.00015504,2]
[400697888,1767782925646,-627.28432715,0.00015504,2]
[400697889,1767782925676,-500.0,0.00015504,2]
[400697890,1767782925708,-500.0,0.00015504,2]
[400697891,1767782925741,-500.0,0.00015504,2]
[400697892,1767782925774,-500.0,0.00015504,2]
[400697893,1767782925944,-500.0,0.00015504,2]
[400697894,1767782925977,-500.0,0.00015504,2]
[400697895,1767782926029,-500.0,0.00015504,2]
[400697896,1767782926059,-500.0,0.00015504,2]
[400697897,1767782926089,-500.0,0.00015504,2]
[400697898,1767782926123,-500.0,0.00015504,2]
[400697899,1767782926153,-500.0,0.00015504,2]
[400697900,1767782926185,-500.0,0.00015504,2]
[400697901,1767782926216,-500.0,0.00015504,2]
[400697902,1767782926246,-500.0,0.00015504,2]
[400697903,1767782926276,-500.0,0.00015504,2]
[400697904,1767782926307,-500.0,0.00015504,2]
[400697905,1767782926766,-260.60568942,0.00015504,2]
[400697906,1767782926795,-0.01,0.00015504,2]
[400697907,1767782932503,1028.85,0.0001494,2]
[400697909,1767782937617,-239.38431058,0.00015504,2]
[400697910,1767782937649,-500.0,0.00015504,2]
[400697911,1767782937679,-500.0,0.00015504,2]
[400697912,1767782937710,-500.0,0.00015504,2]
[400697913,1767782937741,-500.0,0.00015504,2]
[400697914,1767782937770,-500.0,0.00015504,2]
[400697915,1767782937802,-500.0,0.00015504,2]
[400697916,1767782937834,-500.0,0.00015504,2]
[400697917,1767782937867,-208.51350025,0.00015504,2]
[400697918,1767782937898,-500.0,0.00015504,2]
[400697919,1767782937930,-500.0,0.00015504,2]
[400697920,1767782938470,-500.0,0.00015504,2]
[400697921,1767782938500,-500.0,0.00015504,2]
[400697922,1767782938535,-500.0,0.00015504,2]
[400697923,1767782938570,-500.0,0.00015504,2]
[400697924,1767782938604,-500.0,0.00015504,2]
[400697925,1767782938634,-500.0,0.00015504,2]
[400697926,1767782938666,-500.0,0.00015504,2]
[400697927,1767782938700,-500.0,0.00015504,2]
[400697928,1767782938730,-500.0,0.00015504,2]
[400697929,1767782938761,-500.0,0.00015504,2]
[400697930,1767782939221,-104.21437834,0.00015504,2]
[400697931,1767782939234,-0.01,0.00015504,2]
[400697932,1767782947491,-395.77562166,0.00015504,2]
[400697933,1767782947531,-500.0,0.00015504,2]
[400697934,1767782948256,-500.0,0.00015504,2]
[400697935,1767782948325,-500.0,0.00015504,2]
[400697936,1767782948357,-500.0,0.00015504,2]
[400697937,1767782948390,-500.0,0.00015504,2]
[400697938,1767782948422,-500.0,0.00015504,2]
[400697939,1767782948453,-500.0,0.00015504,2]
[400697940,1767782948484,-500.0,0.00015504,2]
[400697941,1767782948514,-500.0,0.00015504,2]
[400697942,1767782948808,-500.0,0.00015504,2]
[400697943,1767782948838,-500.0,0.00015504,2]
[400697944,1767782948871,-500.0,0.00015504,2]
[400697945,1767782948902,-500.0,0.00015504,2]
[400697946,1767782948934,-500.0,0.00015504,2]
[400697947,1767782948967,-500.0,0.00015504,2]
[400697948,1767782948998,-500.0,0.00015504,2]
[400697949,1767782949031,-500.0,0.00015504,2]
[400697950,1767782949062,-500.0,0.00015504,2]
[400697951,1767782949093,-500.0,0.00015504,2]
[400697952,1767782949254,-500.0,0.00015504,2]
[400697953,1767782949285,-500.0,0.00015504,2]
[400697954,1767782949317,-500.0,0.00015504,2]
[400697955,1767782949348,-500.0,0.00015504,2]
[400697956,1767782949377,-500.0,0.00015504,2]
[400697957,1767782949408,-500.0,0.00015504,2]
[400697958,1767782949437,-500.0,0.00015504,2]
[400697959,1767782949465,-500.0,0.00015504,2]
[400697960,1767782949494,-500.0,0.00015504,2]
[400697961,1767782949524,-500.0,0.00015504,2]
[400697962,1767782949680,-500.0,0.00015504,2]
[400697963,1767782949710,-500.0,0.00015504,2]
[400697964,1767782949739,-500.0,0.00015504,2]
[400697965,1767782949769,-500.0,0.00015504,2]
[400697966,1767782949799,-500.0,0.00015504,2]
[400697967,1767782949829,-500.0,0.00015504,2]
[400697968,1767782949859,-500.0,0.00015504,2]
[400697969,1767782949890,-500.0,0.00015504,2]
[400697970,1767782949921,-500.0,0.00015504,2]
[400697971,1767782949953,-500.0,0.00015504,2]
[400697972,1767782950159,-500.0,0.00015504,2]
[400697973,1767782950190,-500.0,0.00015504,2]
[400697974,1767782950232,-500.0,0.00015504,2]
[400697975,1767782950283,-563.34583343,0.00015504,2]
[400697976,1767782950340,-500.0,0.00015504,2]
[400697977,1767782950396,-500.0,0.00015504,2]
[400697978,1767782950452,-500.0,0.00015504,2]
[400697979,1767782950512,-500.0,0.00015504,2]
[400697980,1767782950554,-500.0,0.00015504,2]
[400697981,1767782950586,-373.31833314,0.00015504,2]
[400697982,1767782950768,-126.68166686,0.00015504,2]
[400697983,1767782950799,-500.0,0.00015504,2]
[400697984,1767782950829,-500.0,0.00015504,2]
[400697985,1767782950859,-500.0,0.00015504,2]
[400697986,1767782953040,-335.17042354,0.00015505,2]
[400697987,1767782953053,-6746.64666628,0.00015505,2]
[400697988,1767782959335,-3933.211926,0.00015426,2]
[400697989,1767782959363,-151.0,0.00015502,2]
[400697990,1767782959424,-1831.586148,0.00015505,2]
[400697991,1767782959500,-10000.01,0.00015505,2]
[400697992,1767782970826,-10000.01,0.00015505,2]
[400697993,1767782985014,-10000.01,0.00015505,2]
[400697994,1767782985360,-10000.01,0.00015505,2]
[400697995,1767782985678,-10000.01,0.00015505,2]
[400697996,1767782985825,-10000.01,0.00015505,2]
[400697997,1767782986758,-10000.01,0.00015505,2]
[400697998,1767782986776,-10000.01,0.00015505,2]
[400697999,1767782986802,-10000.01,0.00015505,2]
[400698000,1767782996192,-10000.01,0.00015505,2]
[400698001,1767783006556,-10000.01,0.00015495,2]
[400698002,1767783006675,-1078.23,0.00015495,2]
[400698003,1767783006713,-7843.55,0.00015495,2]
[400698004,1767783006797,-3234.69,0.00015495,2]
[400698005,1767783006826,-1200.0,0.00015504,2]
[400698006,1767783006853,-300.0,0.00015504,2]
[400698007,1767783006882,-251.63,0.00015504,2]
[400698008,1767783006956,-27.37,0.00015504,2]
[400698009,1767783006995,-300.0,0.00015504,2]
[400698010,1767783007049,-9400.01,0.00015505,2]
[400698011,1767783031369,-4595.08982046,0.00015505,2]
[400698012,1767783031381,-485.01153519,0.00015505,2]
[400698013,1767783031424,-351.67346969,0.00015505,2]
[400698014,1767783031477,-222389.64997672,0.00015505,2]
[400698015,1767783031488,-13059.97437372,0.00015505,2]
[400698016,1767783031499,-14647.8287619,0.00015505,2]
[400698017,1767783031510,-18481.97461296,0.00015505,2]
[400698018,1767783031521,-546.51182598,0.00015505,2]
[400698028,1767783033221,-10000.01,0.00015505,2]
[400698031,1767783037481,-24111.94780104,0.00015505,2]
[400698032,1767783037503,-13782.43050724,0.00015505,2]
[400698033,1767783037566,-400834.75128225,0.00015505,2]
[400698034,1767783037575,-1000.0,0.00015505,2]
[400698035,1767783037584,-490.13677849,0.00015505,2]
[400698036,1767783037595,-490.13677849,0.00015505,2]
[400698037,1767783037605,-490.13677849,0.00015505,2]
[400698038,1767783037615,-300.0,0.00015565,2]
[400698039,1767783037625,-300.0,0.00015565,2]
[400698040,1767783037635,-343.96131124,0.00015565,2]
[400698041,1767783037644,-500.0,0.00015604,2]
[400698042,1767783037653,-500.0,0.00015604,2]
[400698043,1767783037663,-258.58725296,0.00015604,2]
[400698044,1767783037674,-500.0,0.00015604,2]
[400698045,1767783037683,-500.0,0.00015604,2]
[400698046,1767783037692,-500.0,0.00015604,2]
[400698047,1767783037701,-500.0,0.00015604,2]
[400698049,1767783037711,-200.0,0.00015605,2]
[400698051,1767783037720,-200.0,0.00015605,2]
[400698053,1767783037729,-151.0,0.00015605,2]
[400698054,1767783037738,-151.0,0.00015605,2]
[400698056,1767783037747,-151.0,0.00015605,2]
[400698058,1767783037756,-151.0,0.00015605,2]
[400698060,1767783037765,-151.0,0.00015605,2]
[400698061,1767783037775,-151.0,0.00015605,2]
[400698063,1767783037784,-151.0,0.00015605,2]
[400698065,1767783037799,-151.0,0.00015605,2]
[400698067,1767783037807,-151.0,0.00015605,2]
[400698069,1767783037817,-151.0,0.00015605,2]
[400698071,1767783037826,-500.0,0.00015605,2]
[400698073,1767783037836,-151.0,0.00015605,2]
[400698075,1767783037845,-195.0,0.00015605,2]
[400698077,1767783037854,-200.0,0.00015605,2]
[400698079,1767783037863,-195.0,0.00015605,2]
[400698081,1767783037872,-500.0,0.00015606,2]
[400698083,1767783037883,-500.0,0.00015606,2]
[400698085,1767783037894,-500.0,0.00015606,2]
[400698087,1767783037903,-500.0,0.00015606,2]
[400698089,1767783037913,-500.0,0.00015606,2]
[400698091,1767783037922,-500.0,0.00015606,2]
[400698093,1767783037931,-500.0,0.00015606,2]
[400698095,1767783037940,-500.0,0.00015606,2]
[400698097,1767783037949,-500.0,0.00015606,2]
[400698099,1767783037958,-500.0,0.00015606,2]
[400698101,1767783037968,-500.0,0.00015606,2]
[400698103,1767783037977,-313.34622116,0.00015606,2]
[400698105,1767783037986,-294.01703467,0.0001566,2]
[400698107,1767783037996,-10474.34491997,0.00015684,2]
[400698109,1767783038006,-500.0,0.00015705,2]
[400698111,1767783038015,-500.0,0.00015705,2]
[400698113,1767783038025,-500.0,0.00015705,2]
[400698115,1767783038034,-508.25738517,0.00015705,2]
[400698117,1767783038043,-500.0,0.00015705,2]
[400698119,1767783038053,-500.0,0.00015705,2]
[400698120,1767783038063,-500.0,0.00015705,2]
[400698122,1767783038073,-500.0,0.00015705,2]
[400698124,1767783038083,-500.0,0.00015705,2]
[400698126,1767783038093,-500.0,0.00015705,2]
[400698129,1767783038102,-500.0,0.00015705,2]
[400698130,1767783038112,-500.0,0.00015705,2]
[400698132,1767783038121,-500.0,0.00015705,2]
[400698135,1767783038136,-500.0,0.00015705,2]
[400698137,1767783038146,-500.0,0.00015705,2]
[400698139,1767783038157,-500.0,0.00015705,2]
[400698141,1767783038167,-500.0,0.00015705,2]
[400698143,1767783038177,-500.0,0.00015705,2]
[400698145,1767783038186,-500.0,0.00015705,2]
[400698147,1767783038197,-500.0,0.00015705,2]
[400698148,1767783038207,-500.0,0.00015705,2]
[400698150,1767783038218,-500.0,0.00015705,2]
[400698152,1767783038230,-314.03395353,0.00015705,2]
[400698154,1767783038240,-500.0,0.00015705,2]
[400698156,1767783038250,-500.0,0.00015705,2]
[400698158,1767783038260,-500.0,0.00015705,2]
[400698160,1767783038270,-500.0,0.00015705,2]
[400698162,1767783038280,-500.0,0.00015705,2]
[400698164,1767783038290,-500.0,0.00015705,2]
[400698166,1767783038300,-500.0,0.00015705,2]
[400698169,1767783038310,-500.0,0.00015705,2]
[400698171,1767783038319,-514.71165586,0.00015705,2]
[400698173,1767783038329,-610.79386728,0.00015705,2]
[400698175,1767783038339,-530.37627741,0.00015705,2]
[400698177,1767783038348,-1630.1,0.00015705,2]
[400698178,1767783038358,-200.0,0.00015761,2]
[400698181,1767783038368,-2042.09,0.00015765,2]
[400698183,1767783038378,-503.51722906,0.00015772,2]
[400698184,1767783038388,-500.0,0.00015772,2]
[400698186,1767783038397,-500.0,0.00015772,2]
[400698187,1767783038407,-16401.25420473,0.00015773,2]
[400698188,1767783038418,-2045.30003102,0.00015807,2]
[400698189,1767783038428,-4121.9,0.00015841,2]
[400698190,1767783038437,-1034.22998151,0.0001585,2]
[400698191,1767783038447,-228.14,0.0001586,2]
[400698192,1767783038456,-331.18683894,0.000159,2]
[400698193,1767783038466,-200.0,0.00015919,2]
[400698194,1767783038476,-10474.34491997,0.00015963,2]
[400698195,1767783038486,-1852.42,0.00015978,2]
[400698196,1767783038495,-500.0,0.00015979,2]
[400698197,1767783038505,-1630.1,0.00015979,2]
[400698198,1767783038515,-500.0,0.00015999,2]
[400698199,1767783038524,-500.0,0.00015999,2]
[400698200,1767783038535,-500.0,0.00015999,2]
[400698201,1767783038545,-56957.09643528,0.00016,2]
[400698202,1767783038554,-25339.32176561,0.00016,4]
[400698203,1767783038564,-16401.25420473,0.00016041,2]
[400698204,1767783038574,-500.0,0.00016153,2]
[400698205,1767783038584,-151.0,0.00016164,2]
[400698207,1767783038594,-151.0,0.00016164,2]
[400698209,1767783038603,-1034.22998151,0.00016194,2]
[400698210,1767783038613,-5000.0006004,0.000162,5]
[400698212,1767783038622,-151.0,0.00016211,2]
[400698214,1767783038631,-10474.34491997,0.00016242,2]
[400698216,1767783038640,-500.0,0.00016253,2]
[400698218,1767783038650,-1630.1,0.00016253,2]
[400698220,1767783038660,-16401.25420473,0.00016309,2]
[400698222,1767783038670,-151.0,0.00016347,2]
[400698224,1767783038686,-151.0,0.00016347,2]
[400698227,1767783038706,-151.0,0.00016351,2]
[400698228,1767783038716,-151.0,0.00016351,2]
[400698231,1767783038725,-151.0,0.00016352,2]
[400698233,1767783038735,-151.0,0.00016352,2]
[400698234,1767783038745,-151.23,0.00016356,2]
[400698237,1767783038755,-151.0,0.00016356,2]
[400698238,1767783038764,-151.0,0.00016356,2]
[400698240,1767783038773,-331.18683892,0.000164,2]
[400698242,1767783038782,-500.0,0.00016437,2]
[400698244,1767783038792,-500.0,0.00016437,2]
[400698246,1767783038801,-500.0,0.00016438,2]
[400698248,1767783038810,-500.0,0.00016438,2]
[400698250,1767783038820,-500.0,0.00016438,2]
[400698253,1767783038837,-500.0,0.00016438,2]
[400698255,1767783038855,-500.0,0.00016438,2]
[400698256,1767783038864,-500.0,0.00016438,2]
[400698259,1767783038874,-500.0,0.00016438,2]
[400698261,1767783038884,-500.0,0.00016438,2]
[400698262,1767783038893,-500.0,0.00016438,2]
[400698265,1767783038905,-500.0,0.00016438,2]
[400698267,1767783038915,-500.0,0.00016438,2]
[400698269,1767783038929,-500.0,0.00016438,2]
[400698271,1767783038942,-500.0,0.00016438,2]
[400698272,1767783038954,-386.61683321,0.00016438,2]
[400698274,1767783038964,-500.0,0.00016438,2]
[400698276,1767783038974,-500.0,0.00016438,2]
[400698278,1767783038984,-500.0,0.00016438,2]
[400698280,1767783038995,-500.0,0.00016438,2]
[400698282,1767783039005,-500.0,0.00016438,2]
[400698284,1767783039015,-500.0,0.00016438,2]
[400698287,1767783039026,-500.0,0.00016438,2]
[400698289,1767783039036,-500.0,0.00016438,2]
[400698291,1767783039046,-500.0,0.00016438,2]
[400698293,1767783039056,-500.0,0.00016438,2]
[400698295,1767783039067,-500.0,0.00016438,2]
[400698297,1767783039077,-500.0,0.00016438,2]
[400698299,1767783039086,-500.0,0.00016438,2]
[400698301,1767783039096,-500.0,0.00016438,2]
[400698303,1767783039107,-500.0,0.00016438,2]
[400698305,1767783039116,-500.0,0.00016438,2]
[400698307,1767783039129,-500.0,0.00016438,2]
[400698309,1767783039143,-500.0,0.00016438,2]
[400698311,1767783039153,-500.0,0.00016438,2]
[400698313,1767783039164,-500.0,0.00016438,2]
[400698315,1767783039176,-500.0,0.00016438,2]
[400698317,1767783039186,-500.0,0.00016438,2]
[400698319,1767783039197,-500.0,0.00016438,2]
[400698321,1767783039208,-500.0,0.00016438,2]
[400698323,1767783039218,-500.0,0.00016438,2]
[400698325,1767783039227,-500.0,0.00016438,2]
[400698327,1767783039237,-500.0,0.00016438,2]
[400698329,1767783039246,-376.29075924,0.00016438,2]
[400698331,1767783039256,-500.0,0.00016438,2]
[400698333,1767783039266,-500.0,0.00016438,2]
[400698335,1767783039275,-500.0,0.00016438,2]
[400698337,1767783039285,-500.0,0.00016438,2]
[400698339,1767783039295,-500.0,0.00016438,2]
[400698341,1767783039305,-500.0,0.00016438,2]
[400698343,1767783039315,-500.0,0.00016438,2]
[400698345,1767783039324,-500.0,0.00016438,2]
[400698347,1767783039334,-500.0,0.00016438,2]
[400698349,1767783039343,-500.0,0.00016438,2]
[400698351,1767783039353,-500.0,0.00016438,2]
[400698353,1767783039363,-2042.09,0.00016516,2]
[400698355,1767783039373,-10474.34491997,0.00016521,2]
[400698357,1767783039383,-500.0,0.00016527,2]
[400698359,1767783039392,-1630.1,0.00016527,2]
[400698361,1767783039401,-1034.22998151,0.00016539,2]
[400698363,1767783039410,-16401.25420473,0.00016577,2]
[400698365,1767783039419,-510.0,0.0001662,2]
[400698367,1767783039429,-228.14,0.00016695,2]
[400698369,1767783039438,-500.0,0.00016701,2]
[400698371,1767783039447,-10474.34491997,0.00016801,2]
[400698373,1767783039456,-1630.1,0.00016801,2]
[400698375,1767783039465,-500.0,0.00016844,2]
[400698377,1767783039475,-621.72362606,0.00016844,2]
[400698379,1767783039484,-16401.25420473,0.00016845,2]
[400698381,1767783039492,-1034.22998151,0.00016883,2]
[400698383,1767783039501,-419.92552458,0.00016887,2]
[400698385,1767783039511,-166.2,0.0001693,2]
[400698387,1767783039520,-2500.0,0.00016946,2]
[400698389,1767783039529,-420.0,0.0001696,2]
[400698391,1767783039538,-270.98651139,0.00016976,2]
[400698393,1767783039547,-151.0,0.00016983,2]
[400698395,1767783039556,-1115.94903288,0.00016985,5]
[400698397,1767783039565,-500.0,0.00016986,2]
[400698399,1767783039573,-500.0,0.00016986,2]
[400698401,1767783039585,-500.0,0.00016986,2]
[400698403,1767783039594,-500.0,0.00016986,2]
[400698405,1767783039603,-521.20759762,0.00016986,2]
[400698407,1767783039612,-642.64105096,0.00016986,2]
[400698409,1767783039620,-500.0,0.00016986,2]
[400698411,1767783039629,-516.18277591,0.00016986,2]
[400698413,1767783039639,-355512.62,0.00016986,2]
[400698415,1767783039648,-250.0,0.00017,2]
[400698417,1767783039657,-1680.0,0.00017045,2]
[400698419,1767783039667,-311.54275263,0.00017054,2]
[400698421,1767783039676,-300.0,0.00017054,2]
[400698423,1767783039686,-250.0,0.00017054,2]
[400698425,1767783039696,-195.0,0.00017054,2]
[400698427,1767783039706,-600.0,0.00017055,2]
[400698429,1767783039716,-600.0,0.00017055,2]
[400698431,1767783039725,-376.22104568,0.00017055,2]
[400698433,1767783039735,-760.40654114,0.00017055,2]
[400698435,1767783039745,-1630.1,0.00017075,2]
[400698437,1767783039754,-10474.34491997,0.0001708,2]